fUSD/lending_fUSD_20260301
["ID","MTS","AMOUNT","RATE_DAILY","PERIOD"]
[406962963,1772362242613,-500.0,0.00015772,2]
[406962964,1772362242624,-281.18620333,0.00015772,2]
[406962965,1772362242633,-500.0,0.00015772,2]
[406962966,1772362242643,-500.0,0.00015772,2]
[406962967,1772362242653,-500.0,0.00015772,2]
[406962968,1772362242662,-500.0,0.00015772,2]
[406962969,1772362242672,-500.0,0.00015772,2]
[406962970,1772362242681,-500.0,0.00015772,2]
[406962971,1772362242690,-500.0,0.00015772,2]
[406962972,1772362242700,-500.0,0.00015772,2]
[406962973,1772362242709,-500.0,0.00015772,2]
[406962974,1772362242719,-500.0,0.00015772,2]
[406962975,1772362242730,-500.0,0.00015772,2]
[406962976,1772362242739,-500.0,0.00015772,2]
[406962977,1772362242749,-500.0,0.00015772,2]
[406962978,1772362242758,-500.0,0.00015772,2]
[406962979,1772362242768,-500.0,0.00015772,2]
[406962980,1772362242777,-500.0,0.00015772,2]
[406962982,1772362242787,-500.0,0.00015772,2]
[406962983,1772362242796,-454.69204283,0.00015772,2]
[406962984,1772362242806,-500.0,0.00015772,2]
[406962985,1772362242816,-391.70323882,0.00015772,2]
[406962986,1772362242826,-500.0,0.00015772,2]
[406962987,1772362242836,-500.0,0.00015772,2]
[406962988,1772362242846,-500.0,0.00015772,2]
[406962989,1772362242855,-500.0,0.00015772,2]
[406962990,1772362242865,-159.80083652,0.00015772,2]
[406962991,1772362242874,-500.0,0.00015772,2]
[406962992,1772362242883,-500.0,0.00015772,2]
[406962993,1772362242893,-500.0,0.00015772,2]
[406962994,1772362242902,-500.0,0.00015772,2]
[406962995,1772362242911,-500.0,0.00015772,2]
[406962996,1772362242921,-500.0,0.00015772,2]
[406962997,1772362242932,-500.0,0.00015772,2]
[406962998,1772362242942,-500.0,0.00015772,2]
[406962999,1772362242951,-500.0,0.00015772,2]
[406963000,1772362242960,-500.0,0.00015772,2]
[406963001,1772362242973,-500.0,0.00015772,2]
[406963002,1772362242983,-604.16,0.00015772,2]
[406963003,1772362242993,-12543.80964578,0.00015852,2]
[406963004,1772362243002,-1000.0,0.0001589,2]
[406963005,1772362243012,-5573.72331167,0.00015898,2]
[406963006,1772362243021,-748.601069,0.00015939,7]
[406963008,1772362243030,-3324.761394,0.00015945,7]
[406963010,1772362243039,-1600.0,0.00015991,2]
[406963012,1772362243048,-498.6,0.00016163,2]
[406963014,1772362243058,-174.09452548,0.00016394,2]
[406963016,1772362243066,-160.0,0.00016394,2]
[406963018,1772362243075,-584.06,0.00016438,2]
[406963020,1772362243084,-2000.0,0.00016438,2]
[406963021,1772362243093,-153.04785948,0.00016447,2]
[406963022,1772362243102,-12543.80964578,0.00016534,2]
[406963023,1772362243111,-5573.72331167,0.00016565,2]
[406963024,1772362243120,-166.4,0.00016712,2]
[406963025,1772362243129,-498.6,0.00016785,2]
[406963026,1772362243139,-168.0,0.00016953,2]
[406963027,1772362243149,-500.0,0.00016987,2]
[406963028,1772362243159,-300.0,0.00017,2]
[406963029,1772362243168,-644.79446246,0.00017099,2]
[406963030,1772362243178,-668.65185757,0.00017154,2]
[406963031,1772362243187,-693.3919763,0.00017209,2]
[406963032,1772362243198,-12543.80964578,0.00017217,2]
[406963033,1772362243208,-5573.72331167,0.00017233,2]
[406963034,1772362243217,-719.04747942,0.00017264,2]
[406963035,1772362243227,-927.0,0.00017319,2]
[406963036,1772362243236,-1432.0,0.00017319,2]
[406963037,1772362243246,-745.65223616,0.00017319,2]
[406963038,1772362243255,-1000.0,0.00017335,2]
[406963039,1772362243265,-773.2413689,0.00017374,2]
[406963040,1772362243275,-1119.879,0.00017429,2]
[406963041,1772362243285,-173.053,0.00017429,2]
[406963042,1772362243296,-801.85129955,0.00017429,2]
[406963043,1772362243307,-1041.0,0.0001744,2]
[406963044,1772362243316,-3500.0,0.0001744,2]
[406963045,1772362243325,-619.0,0.0001744,2]
[406963046,1772362243334,-1340.0,0.0001744,2]
[406963047,1772362243343,-1278.0,0.0001744,2]
[406963048,1772362243356,-413.0,0.0001744,2]
[406963049,1772362243365,-4575.0,0.0001744,2]
[406963050,1772362243374,-831.51979763,0.00017484,2]
[406963051,1772362243384,-862.28603014,0.00017539,2]
[406963052,1772362243393,-894.19061326,0.00017594,2]
[406963053,1772362243403,-1700.0,0.000176,6]
[406963054,1772362243412,-500.0,0.00017639,2]
[406963055,1772362243421,-500.0,0.00017639,2]
[406963056,1772362243431,-500.0,0.00017639,2]
[406963057,1772362243440,-1029.07467337,0.0001764,2]
[406963058,1772362243449,-1086.52458348,0.0001764,2]
[406963059,1772362243459,-1078.40465742,0.0001764,2]
[406963060,1772362243469,-1003.54733857,0.0001764,2]
[406963061,1772362243478,-1050.10418637,0.0001764,2]
[406963062,1772362243487,-1104.74565225,0.0001764,2]
[406963063,1772362243497,-1053.76915997,0.0001764,2]
[406963064,1772362243507,-1023.71194319,0.0001764,2]
[406963065,1772362243517,-1029.53242086,0.0001764,2]
[406963066,1772362243527,-1127.43184355,0.0001764,2]
[406963067,1772362243536,-1035.79653772,0.0001764,2]
[406963068,1772362243546,-1036.75185284,0.0001764,2]
[406963069,1772362243555,-1092.99823321,0.0001764,2]
[406963070,1772362243564,-1028.75735194,0.0001764,2]
[406963071,1772362243576,-1105.23151019,0.0001764,2]
[406963072,1772362243586,-452.91209636,0.0001764,2]
[406963073,1772362243595,-927.27566595,0.00017649,2]
[406963074,1772362243605,-168.0,0.00017672,2]
[406963075,1772362243615,-168.0,0.00017682,2]
[406963076,1772362243624,-500.0,0.00017699,2]
[406963077,1772362243633,-150.0,0.00017699,2]
[406963078,1772362243643,-500.0,0.00017699,2]
[406963079,1772362243652,-500.0,0.00017699,2]
[406963080,1772362243661,-150.0,0.00017699,2]
[406963081,1772362243671,-918.0,0.00017699,2]
[406963082,1772362243681,-159.26908441,0.00017699,2]
[406963083,1772362243690,-500.0,0.00017699,2]
[406963084,1772362243699,-150.0,0.00017699,2]
[406963085,1772362243709,-150.0,0.00017699,2]
[406963086,1772362243719,-500.0,0.00017699,2]
[406963087,1772362243729,-300.0,0.000177,6]
[406963088,1772362243739,-2000.0,0.000177,2]
[406963089,1772362243748,-961.58486559,0.00017704,2]
[406963090,1772362243758,-299.99,0.00017728,4]
[406963091,1772362243767,-999.99,0.00017728,2]
[406963092,1772362243778,-7960.06,0.00017728,2]
[406963093,1772362243787,-9999.99,0.00017728,2]
[406963094,1772362243797,-8712.46,0.00017728,2]
[406963095,1772362243806,-9999.99,0.00017728,2]
[406963096,1772362243816,-16915.93,0.00017728,2]
[406963097,1772362243825,-9999.99,0.00017728,2]
[406963098,1772362243835,-150.99,0.00017728,2]
[406963099,1772362243844,-500.0,0.00017754,2]
[406963100,1772362243853,-500.0,0.00017754,2]
[406963101,1772362243862,-500.0,0.00017754,2]
[406963102,1772362243872,-150.0,0.00017754,2]
[406963103,1772362243882,-918.0,0.00017754,2]
[406963104,1772362243891,-150.0,0.00017754,2]
[406963105,1772362243900,-500.0,0.00017754,2]
[406963106,1772362243910,-500.0,0.00017754,2]
[406963107,1772362243921,-997.16350561,0.00017759,2]
[406963108,1772362243931,-300.0,0.000178,6]
[406963109,1772362243940,-150.0,0.00017808,2]
[406963110,1772362243949,-800.0,0.00017808,2]
[406963111,1772362243959,-500.0,0.00017809,2]
[406963112,1772362243968,-500.0,0.00017809,2]
[406963113,1772362243977,-500.0,0.00017809,2]
[406963114,1772362243987,-150.0,0.00017809,2]
[406963115,1772362243995,-918.0,0.00017809,2]
[406963116,1772362244006,-150.0,0.00017809,2]
[406963117,1772362244015,-500.0,0.00017809,2]
[406963118,1772362244024,-500.0,0.00017809,2]
[406963119,1772362244033,-1072.87450731,0.0001782,10]
[406963120,1772362244043,-150.0,0.00017863,2]
[406963121,1772362244052,-250.0,0.00017863,2]
[406963122,1772362244063,-500.0,0.00017863,2]
[406963123,1772362244072,-500.0,0.00017863,2]
[406963124,1772362244083,-150.0,0.00017863,2]
[406963125,1772362244093,-918.0,0.00017863,2]
[406963126,1772362244102,-408.30233963,0.00017863,2]
[406963127,1772362244111,-150.0,0.00017863,2]
[406963128,1772362244120,-411.20780857,0.00017863,2]
[406963129,1772362244130,-10000.0,0.000179,2]
[406963130,1772362244139,-12543.80964578,0.000179,2]
[406963131,1772362244149,-5573.72331167,0.000179,2]
[406963132,1772362244159,-300.0,0.000179,6]
[406963133,1772362244169,-2105.56887116,0.000179,2]
[406963134,1772362244178,-5700.0,0.000179,2]
[406963135,1772362244187,-150.0,0.00017918,2]
[406963136,1772362244199,-500.0,0.00017918,2]
[406963137,1772362244208,-164.66750726,0.00017918,2]
[406963138,1772362244217,-150.0,0.00017918,2]
[406963139,1772362244227,-918.0,0.00017918,2]
[406963140,1772362244236,-150.0,0.00017918,2]
[406963141,1772362244246,-8620.92722746,0.00017926,2]
[406963142,1772362244255,-200.0,0.00017937,2]
[406963143,1772362244265,-168.0,0.00017971,2]
[406963144,1772362244274,-453.99807212,0.00017973,2]
[406963145,1772362244283,-250.0,0.00017973,2]
[406963146,1772362244293,-918.0,0.00017973,2]
[406963147,1772362244302,-250.0,0.00017973,2]
[406963148,1772362244311,-150.0,0.00017979,2]
[406963149,1772362244322,-1876.0259476,0.00017996,2]
[406963150,1772362244331,-1146.0416303,0.00017996,2]
[406963151,1772362244340,-192.583409,0.00017996,7]
[406963152,1772362244350,-22800.1541078,0.00017997,2]
[406963153,1772362244359,-8279.3459756,0.00017997,2]
[406963154,1772362244369,-45798.5989361,0.00017997,2]
[406963155,1772362244378,-151.0,0.00017997,2]
[406963156,1772362244388,-219.8714796,0.00017999,2]
[406963157,1772362244398,-500.0,0.00017999,2]
[406963158,1772362244407,-152.43247842,0.00017999,2]
[406963159,1772362244416,-500.0,0.00017999,2]
[406963160,1772362244426,-500.0,0.00017999,2]
[406963161,1772362244435,-500.0,0.00017999,2]
[406963162,1772362244444,-500.0,0.00017999,2]
[406963163,1772362244454,-500.0,0.00017999,2]
[406963164,1772362244463,-330.61629648,0.00017999,2]
[406963165,1772362244473,-352.47562623,0.00017999,2]
[406963166,1772362244483,-300.0,0.00017999,2]
[406963167,1772362244492,-500.0,0.00017999,2]
[406963168,1772362244502,-500.0,0.00017999,2]
[406963169,1772362244516,-500.0,0.00017999,2]
[406963170,1772362244526,-500.0,0.00017999,2]
[406963171,1772362244535,-500.0,0.00017999,2]
[406963172,1772362244545,-564.87520289,0.00017999,2]
[406963173,1772362244554,-500.0,0.00017999,2]
[406963174,1772362244563,-500.0,0.00017999,2]
[406963175,1772362244572,-500.0,0.00017999,2]
[406963176,1772362244582,-500.0,0.00017999,2]
[406963177,1772362244591,-500.0,0.00017999,2]
[406963178,1772362244600,-500.0,0.00017999,2]
[406963179,1772362244609,-500.0,0.00017999,2]
[406963180,1772362244618,-500.0,0.00017999,2]
[406963181,1772362244629,-595.07228117,0.00017999,2]
[406963182,1772362244638,-300.0,0.00017999,2]
[406963183,1772362244647,-300.0,0.00017999,2]
[406963184,1772362244657,-300.0,0.00017999,2]
[406963185,1772362244666,-192.44937759,0.00017999,2]
[406963186,1772362244681,-591718.41196607,0.00018,2]
[406963187,1772362244705,-447.27377518,0.00018,2]
[406963188,1772362244736,-2457.0,0.0001744,2]
[406963189,1772362244745,-7603.40687411,0.00018,2]
[406963190,1772362244756,-16348.02024587,0.00018,2]
[406963191,1772362244768,-264.73351252,0.00018,2]
[406963192,1772362245192,-800.00105823,0.00018,2]
[406963193,1772362245207,-510.4896,0.00018,2]
[406963196,1772362245926,-624.7504634,0.00017999,2]
[406963197,1772362245938,-503.0,0.00017999,2]
[406963198,1772362246187,-244.2495366,0.00017999,2]
[406963199,1772362246195,-9687.25046337,0.00018,2]
[406963200,1772362246241,-44072.16063074,0.00018,2]
[406963201,1772362246249,-532419.90530595,0.00018,2]
[406963202,1772362246260,-28195.20406331,0.00018,2]
[406963221,1772363432062,-1555.25933657,0.0001019,2]
[406963223,1772363432074,-1324.41066343,0.0001019,2]
[406963225,1772363432084,-26.73526096,0.00010226,2]
[406963227,1772363432097,-236.31758104,0.00010226,2]
[406963228,1772363432107,-189.569437,0.0001026,2]
[406963229,1772363432116,-857.85903239,0.00010388,2]
[406963230,1772363432128,-419.3,0.00010388,2]
[406963231,1772363432166,-575.26096761,0.00010388,2]
[406963232,1772363432176,-1500.0,0.00010406,2]
[406963233,1772363432185,-300.0,0.00010452,2]
[406963234,1772363432195,-1200.0,0.00010452,2]
[406963235,1772363432205,-5412.4,0.00010453,2]
[406963236,1772363432214,-166.66,0.00010545,2]
[406963237,1772363432224,-1200.0,0.000106,3]
[406963238,1772363432234,-217.26,0.00010614,2]
[406963239,1772363432244,-939.01,0.00010636,2]
[406963240,1772363432253,-455.85471583,0.00010654,2]
[406963241,1772363432263,-151.0,0.00010661,2]
[406963242,1772363432273,-151.0,0.00010661,2]
[406963243,1772363432282,-91073.57304333,0.00010664,2]
[406963244,1772363432294,-42915.48558661,0.00010664,2]
[406963245,1772363432306,-83240.18092108,0.00010664,2]
[406963246,1772363432317,-732.5,0.00010664,2]
[406963247,1772363432329,-5203.17300793,0.00010664,2]
[406963250,1772363438347,-2276835.08744105,0.00010664,2]
[406963251,1772363438356,-2500.0,0.000107,3]
[406963252,1772363438366,-16637.98,0.00010764,2]
[406963253,1772363438376,-234.0,0.00010786,2]
[406963254,1772363438386,-3700.0,0.000108,3]
[406963255,1772363438395,-166.66,0.00010893,2]
[406963256,1772363438405,-5000.0,0.000109,3]
[406963257,1772363438415,-150.0,0.00010959,2]
[406963258,1772363438425,-150.0,0.00010959,2]
[406963259,1772363438435,-17141.94492375,0.00011099,2]
[406963260,1772363438444,-1119.879,0.00011167,2]
[406963261,1772363438454,-173.053,0.00011167,2]
[406963263,1772363438463,-3786.69197482,0.0001119,2]
[406963265,1772363438473,-166.66,0.00011241,2]
[406963267,1772363438482,-1360.25933657,0.00011286,2]
[406963269,1772363438491,-150.0,0.00011326,2]
[406963271,1772363438501,-8088.33498697,0.00011327,2]
[406963273,1772363438511,-768.03546614,0.00011373,2]
[406963275,1772363438520,-2105.56887118,0.00011373,2]
[406963277,1772363438529,-155.23642036,0.00011405,2]
[406963279,1772363438539,-17141.94492374,0.00011411,2]
[406963281,1772363438548,-200.0,0.00011418,2]
[406963283,1772363438558,-151.0,0.00011418,2]
[406963285,1772363438567,-500.0,0.00011418,2]
[406963287,1772363438576,-500.0,0.00011418,2]
[406963289,1772363438586,-500.0,0.00011418,2]
[406963291,1772363438596,-151.0,0.00011418,2]
[406963293,1772363438605,-500.0,0.00011418,2]
[406963295,1772363438615,-151.0,0.00011418,2]
[406963297,1772363438624,-500.0,0.00011418,2]
[406963299,1772363438634,-151.0,0.00011418,2]
[406963301,1772363438644,-500.0,0.00011418,2]
[406963304,1772363438655,-500.0,0.00011418,2]
[406963306,1772363438664,-151.0,0.00011418,2]
[406963307,1772363438673,-500.0,0.00011418,2]
[406963309,1772363438682,-500.0,0.00011418,2]
[406963311,1772363438692,-151.0,0.00011418,2]
[406963313,1772363438701,-500.0,0.00011418,2]
[406963315,1772363438711,-500.0,0.00011418,2]
[406963317,1772363438720,-151.0,0.00011418,2]
[406963319,1772363438730,-500.0,0.00011418,2]
[406963321,1772363438740,-500.0,0.00011418,2]
[406963323,1772363438750,-151.0,0.00011418,2]
[406963325,1772363438759,-500.0,0.00011418,2]
[406963327,1772363438769,-500.0,0.00011418,2]
[406963329,1772363438779,-151.0,0.00011418,2]
[406963331,1772363438789,-500.0,0.00011418,2]
[406963333,1772363438799,-500.0,0.00011418,2]
[406963335,1772363438809,-151.0,0.00011418,2]
[406963337,1772363438819,-500.0,0.00011418,2]
[406963339,1772363438828,-500.0,0.00011418,2]
[406963341,1772363438837,-151.0,0.00011418,2]
[406963343,1772363438850,-500.0,0.00011418,2]
[406963345,1772363438860,-500.0,0.00011418,2]
[406963347,1772363438870,-151.0,0.00011418,2]
[406963349,1772363438880,-500.0,0.00011418,2]
[406963351,1772363438890,-151.0,0.00011418,2]
[406963353,1772363438899,-500.0,0.00011418,2]
[406963355,1772363438908,-500.0,0.00011418,2]
[406963357,1772363438919,-151.0,0.00011418,2]
[406963359,1772363438928,-151.0,0.00011418,2]
[406963361,1772363438938,-500.0,0.00011418,2]
[406963363,1772363438947,-151.0,0.00011418,2]
[406963365,1772363438956,-500.0,0.00011418,2]
[406963367,1772363438966,-151.0,0.00011418,2]
[406963369,1772363438975,-151.0,0.00011418,2]
[406963371,1772363438984,-151.0,0.00011418,2]
[406963373,1772363438994,-151.0,0.00011418,2]
[406963375,1772363439003,-151.0,0.00011418,2]
[406963377,1772363439012,-151.0,0.00011418,2]
[406963379,1772363439021,-151.0,0.00011418,2]
[406963381,1772363439030,-151.0,0.00011418,2]
[406963383,1772363439039,-151.0,0.00011418,2]
[406963385,1772363439049,-151.0,0.00011418,2]
[406963387,1772363439058,-151.0,0.00011418,2]
[406963389,1772363439067,-151.0,0.00011418,2]
[406963391,1772363439076,-151.0,0.00011418,2]
[406963392,1772363439086,-151.0,0.00011418,2]
[406963394,1772363439095,-151.0,0.00011418,2]
[406963396,1772363439105,-151.0,0.00011418,2]
[406963398,1772363439114,-151.0,0.00011418,2]
[406963400,1772363439123,-151.0,0.00011418,2]
[406963402,1772363439132,-500.0,0.00011418,2]
[406963404,1772363439141,-23105.91,0.00011425,2]
[406963406,1772363439151,-7505.4392038,0.00011436,2]
[406963408,1772363439160,-254.92107206,0.00011441,2]
[406963410,1772363439169,-1036.32016175,0.00011455,3]
[406963412,1772363439178,-1036.32016175,0.00011455,3]
[406963414,1772363439187,-526.13235836,0.00011455,2]
[406963430,1772363439328,-526.13235836,0.00011455,2]
[406963432,1772363439339,-526.13235836,0.00011455,2]
[406963434,1772363439348,-526.13235836,0.00011455,2]
[406963436,1772363439357,-526.13235836,0.00011455,2]
[406963438,1772363439367,-526.13235836,0.00011455,2]
[406963440,1772363439376,-526.13235836,0.00011455,2]
[406963442,1772363439385,-526.13235836,0.00011455,2]
[406963444,1772363439395,-526.13235836,0.00011455,2]
[406963446,1772363439404,-526.13235836,0.00011455,2]
[406963448,1772363439413,-526.13235836,0.00011455,2]
[406963450,1772363439423,-526.13235836,0.00011455,2]
[406963452,1772363439432,-526.13235836,0.00011455,2]
[406963454,1772363439441,-526.13235836,0.00011455,2]
[406963456,1772363439451,-526.13235836,0.00011455,2]
[406963458,1772363439459,-526.13235836,0.00011455,2]
[406963460,1772363439469,-526.13235836,0.00011455,2]
[406963462,1772363439480,-526.13235836,0.00011455,2]
[406963464,1772363439489,-526.13235836,0.00011455,2]
[406963466,1772363439497,-526.13235836,0.00011455,2]
[406963468,1772363439507,-526.13235836,0.00011455,2]
[406963470,1772363439516,-526.13235836,0.00011455,2]
[406963472,1772363439525,-526.13235836,0.00011455,2]
[406963474,1772363439535,-526.13235836,0.00011455,2]
[406963476,1772363439545,-526.13235836,0.00011455,2]
[406963478,1772363439554,-526.13235836,0.00011455,2]
[406963480,1772363439564,-526.13235836,0.00011455,2]
[406963482,1772363439574,-526.13235836,0.00011455,2]
[406963483,1772363439583,-526.13235836,0.00011455,2]
[406963485,1772363439592,-526.13235836,0.00011455,2]
[406963487,1772363439604,-526.13235836,0.00011455,2]
[406963489,1772363439619,-526.13235836,0.00011455,2]
[406963491,1772363439628,-526.13235836,0.00011455,2]
[406963493,1772363439637,-526.13235836,0.00011455,2]
[406963495,1772363439647,-526.13235836,0.00011455,2]
[406963497,1772363439656,-526.13235836,0.00011455,2]
[406963499,1772363439665,-526.13235836,0.00011455,2]
[406963501,1772363439675,-526.13235836,0.00011455,2]
[406963503,1772363439684,-526.13235836,0.00011455,2]
[406963505,1772363439693,-526.13235836,0.00011455,2]
[406963507,1772363439702,-526.13235836,0.00011455,2]
[406963508,1772363439711,-526.13235836,0.00011455,2]
[406963510,1772363439720,-526.13235836,0.00011455,2]
[406963512,1772363439729,-526.13235836,0.00011455,2]
[406963514,1772363439738,-526.13235836,0.00011455,2]
[406963516,1772363439747,-526.13235836,0.00011455,2]
[406963518,1772363439756,-526.13235836,0.00011455,2]
[406963520,1772363439765,-526.13235836,0.00011455,2]
[406963522,1772363439775,-526.13235836,0.00011455,2]
[406963524,1772363439785,-526.13235836,0.00011455,2]
[406963526,1772363439794,-526.13235836,0.00011455,2]
[406963528,1772363439804,-301.5400247,0.00011455,2]
[406963530,1772363439814,-500.0,0.00011455,2]
[406963532,1772363439823,-500.0,0.00011455,2]
[406963534,1772363439832,-500.0,0.00011455,2]
[406963535,1772363439842,-151.71826987,0.00011455,2]
[406963536,1772363439855,-526.13235835,0.00011455,2]
[406963537,1772363439864,-526.13235835,0.00011455,2]
[406963538,1772363439875,-526.13235835,0.00011455,2]
[406963539,1772363439883,-526.13235835,0.00011455,2]
[406963540,1772363439895,-526.13235835,0.00011455,2]
[406963541,1772363439904,-526.13235835,0.00011455,2]
[406963542,1772363439914,-500.0,0.00011455,2]
[406963543,1772363439924,-526.13235835,0.00011455,2]
[406963544,1772363439933,-526.13235835,0.00011455,2]
[406963545,1772363439943,-526.13235835,0.00011455,2]
[406963546,1772363439952,-500.0,0.00011455,2]
[406963547,1772363439962,-526.13235835,0.00011455,2]
[406963548,1772363439971,-526.13235835,0.00011455,2]
[406963549,1772363439980,-526.13235835,0.00011455,2]
[406963550,1772363439990,-526.13235835,0.00011455,2]
[406963551,1772363439999,-526.13235835,0.00011455,2]
[406963552,1772363440009,-526.13235835,0.00011455,2]
[406963553,1772363440018,-526.13235835,0.00011455,2]
[406963554,1772363440028,-526.13235835,0.00011455,2]
[406963555,1772363440036,-526.13235835,0.00011455,2]
[406963556,1772363440045,-526.13235835,0.00011455,2]
[406963557,1772363440055,-526.13235835,0.00011455,2]
[406963558,1772363440064,-526.13235835,0.00011455,2]
[406963559,1772363440074,-526.13235835,0.00011455,2]
[406963561,1772363440083,-526.13235835,0.00011455,2]
[406963563,1772363440093,-526.13235835,0.00011455,2]
[406963564,1772363440102,-526.13235835,0.00011455,2]
[406963565,1772363440111,-526.13235835,0.00011455,2]
[406963566,1772363440120,-526.13235835,0.00011455,2]
[406963567,1772363440130,-526.13235835,0.00011455,2]
[406963568,1772363440140,-526.13235835,0.00011455,2]
[406963569,1772363440149,-526.13235835,0.00011455,2]
[406963571,1772363440159,-233.4835721,0.00011455,2]
[406963573,1772363440168,-526.13235836,0.00011455,2]
[406963575,1772363440178,-526.13235836,0.00011455,2]
[406963577,1772363440187,-526.13235836,0.00011455,2]
[406963579,1772363440196,-526.13235836,0.00011455,2]
[406963581,1772363440206,-526.13235836,0.00011455,2]
[406963583,1772363440215,-526.13235836,0.00011455,2]
[406963585,1772363440224,-526.13235836,0.00011455,2]
[406963587,1772363440233,-500.0,0.00011473,2]
[406963589,1772363440243,-500.0,0.00011473,2]
[406963591,1772363440252,-500.18195565,0.00011473,2]
[406963593,1772363440266,-501.42014144,0.00011473,2]
[406963595,1772363440275,-502.18781882,0.00011473,2]
[406963597,1772363440285,-500.0,0.00011473,2]
[406963599,1772363440294,-500.0,0.00011473,2]
[406963601,1772363440304,-500.0,0.00011473,2]
[406963603,1772363440313,-500.0,0.00011473,2]
[406963605,1772363440322,-500.0,0.00011473,2]
[406963607,1772363440331,-151.0,0.00011473,2]
[406963609,1772363440340,-1680.0,0.00011497,2]
[406963611,1772363440350,-152.10740393,0.00011528,2]
[406963613,1772363440359,-237.0,0.00011587,2]
[406963616,1772363440371,-166.66,0.00011589,2]
[406963618,1772363440385,-204.0,0.0001161,2]
[406963621,1772363440400,-442.0,0.00011633,2]
[406963623,1772363440412,-500.0,0.00011692,2]
[406963625,1772363440424,-4000.0,0.0001171,2]
[406963628,1772363440438,-7312.97,0.00011717,2]
[406963630,1772363440451,-2653.66014243,0.00011722,2]
[406963633,1772363440463,-455.85471583,0.00011738,2]
[406963634,1772363440477,-151.0,0.00011745,2]
[406963635,1772363440488,-918966.8509,0.00011748,2]
[406963636,1772363440500,-187.9739,0.00011755,2]
[406963637,1772363440511,-2718.0,0.000119,5]
[406963638,1772363440523,-166.66,0.00011937,2]
[406963639,1772363440535,-500.0,0.00011966,2]
[406963640,1772363440548,-200.0,0.00011966,2]
[406963641,1772363440560,-4000.0,0.00012003,2]
[406963642,1772363440572,-1000.0,0.00012021,2]
[406963643,1772363440585,-500.0,0.0001207,2]
[406963644,1772363440597,-500.0,0.0001207,2]
[406963645,1772363440611,-500.0,0.0001207,2]
[406963646,1772363440624,-500.0,0.0001207,2]
[406963647,1772363440636,-500.0,0.0001207,2]
[406963648,1772363440648,-500.0,0.0001207,2]
[406963649,1772363440659,-173.85261978,0.0001207,2]
[406963650,1772363440672,-500.0,0.0001207,2]
[406963651,1772363440685,-500.0,0.0001207,2]
[406963652,1772363440697,-500.0,0.0001207,2]
[406963653,1772363440709,-500.0,0.0001207,2]
[406963654,1772363440721,-500.0,0.0001207,2]
[406963655,1772363440731,-505.60044076,0.0001207,2]
[406963656,1772363440742,-500.0,0.0001207,2]
[406963657,1772363440753,-500.0,0.0001207,2]
[406963658,1772363440768,-500.0,0.0001207,2]
[406963659,1772363440778,-500.0,0.0001207,2]
[406963660,1772363440788,-500.0,0.0001207,2]
[406963661,1772363440799,-500.0,0.0001207,2]
[406963662,1772363440810,-502.36418825,0.0001207,2]
[406963663,1772363440822,-500.0,0.0001207,2]
[406963664,1772363440834,-500.0,0.0001207,2]
[406963666,1772363440848,-500.0,0.0001207,2]
[406963667,1772363440858,-500.0,0.0001207,2]
[406963668,1772363440870,-670.0,0.0001207,2]
[406963669,1772363440881,-500.0,0.0001207,2]
[406963670,1772363440894,-500.0,0.0001207,2]
[406963671,1772363440906,-152.81102873,0.0001207,2]
[406963672,1772363440917,-17141.94492374,0.00012222,2]
[406963673,1772363440929,-185.0,0.0001226,2]
[406963674,1772363440940,-166.66,0.00012285,2]